[Event "Live Chess"]
[Site "Chess.com"]
[Date "2024.06.01"]
[Round "-"]
[White "Pizzaman313"]
[Black "defenderalist"]
[Result "1-0"]
[WhiteElo "1211"]
[BlackElo "1499"]
[TimeControl "300"]
[EndTime "10:00:37 PDT"]
[Termination "Pizzaman313 won by resignation"]

1. e4 {[%clk 0:04:57.6]} 1... c5 {[%clk 0:04:58.4]} 2. c3 {[%clk 0:04:56.2]}
2... d6 {[%clk 0:04:58.3]} 3. d4 {[%clk 0:04:55.4]} 3... cxd4 {[%clk 0:04:57]}
4. cxd4 {[%clk 0:04:55.3]} 4... Nf6 {[%clk 0:04:52.2]} 5. Nc3 {[%clk 0:04:53.5]}
5... a6 {[%clk 0:04:51.3]} 6. Nf3 {[%clk 0:04:51.9]} 6... b5 {[%clk 0:04:46.6]}
7. a3 {[%clk 0:04:50.1]} 7... Bb7 {[%clk 0:04:45.3]} 8. Bd3 {[%clk 0:04:46.7]}
8... Nbd7 {[%clk 0:04:42.6]} 9. O-O {[%clk 0:04:45.1]} 9... g6 {[%clk
0:04:41.1]} 10. Re1 {[%clk 0:04:43.6]} 10... Bg7 {[%clk 0:04:39.6]} 11. Bf4
{[%clk 0:04:32]} 11... Nh5 {[%clk 0:04:30.1]} 12. Bg3 {[%clk 0:04:27.6]} 12...
Nxg3 {[%clk 0:04:29]} 13. hxg3 {[%clk 0:04:23]} 13... Qb6 {[%clk 0:04:25.6]} 14.
d5 {[%clk 0:04:15.3]} 14... Ne5 {[%clk 0:04:17]} 15. Nxe5 {[%clk 0:04:11.2]}
15... Bxe5 {[%clk 0:04:14.9]} 16. Qf3 {[%clk 0:04:04.4]} 16... O-O {[%clk
0:04:03.5]} 17. Rab1 {[%clk 0:03:57.6]} 17... Rac8 {[%clk 0:03:59.5]} 18. Ne2
{[%clk 0:03:45.7]} 18... e6 {[%clk 0:03:43.4]} 19. dxe6 {[%clk 0:03:29]} 19...
fxe6 {[%clk 0:03:36.2]} 20. Qg4 {[%clk 0:03:26.3]} 20... Qxf2+ {[%clk
0:03:24.3]} 21. Kh1 {[%clk 0:03:09.2]} 21... Qe3 {[%clk 0:03:02.7]} 22. Nf4
{[%clk 0:02:54.7]} 22... Bxf4 {[%clk 0:02:56.9]} 23. Rxe3 {[%clk 0:02:51.6]}
23... Bxe3 {[%clk 0:02:52.6]} 24. Qxe6+ {[%clk 0:02:47.4]} 24... Rf7 {[%clk
0:02:49.5]} 25. Rf1 {[%clk 0:02:39.2]} 25... Rf8 {[%clk 0:02:46.2]} 26. Rxf7
{[%clk 0:02:27.9]} 26... Rxf7 {[%clk 0:02:36.7]} 27. Qxd6 {[%clk 0:02:04.9]}
27... Bf2 {[%clk 0:02:13.8]} 28. e5 {[%clk 0:01:49.9]} 28... Bxg3 {[%clk
0:02:09.4]} 29. Qd8+ {[%clk 0:01:40.1]} 29... Rf8 {[%clk 0:02:02.8]} 30. Qd7
{[%clk 0:01:21.7]} 30... Be4 {[%clk 0:01:58.9]} 31. e6 {[%clk 0:00:57.2]} 31...
Bxd3 {[%clk 0:01:30.1]} 32. Qxd3 {[%clk 0:00:54.2]} 32... Rc8 {[%clk 0:01:21.5]}
33. Qxg3 {[%clk 0:00:52.2]} 1-0

[Event "Live Chess"]
[Site "Chess.com"]
[Date "2024.06.01"]
[Round "-"]
[White "Bazzza132"]
[Black "hapehansen"]
[Result "0-1"]
[WhiteElo "1672"]
[BlackElo "2246"]
[TimeControl "300"]
[EndTime "10:00:39 PDT"]
[Termination "hapehansen won by resignation"]

1. e4 {[%clk 0:04:58.3]} 1... c6 {[%clk 0:04:58.1]} 2. d4 {[%clk 0:04:57.2]}
2... d5 {[%clk 0:04:56.9]} 3. Nc3 {[%clk 0:04:56.9]} 3... dxe4 {[%clk
0:04:55.4]} 4. Nxe4 {[%clk 0:04:56.8]} 4... Nf6 {[%clk 0:04:54.5]} 5. Nxf6+
{[%clk 0:04:48.6]} 5... exf6 {[%clk 0:04:54.4]} 6. Nf3 {[%clk 0:04:47]} 6... Bd6
{[%clk 0:04:51.4]} 7. Bd3 {[%clk 0:04:43.1]} 7... O-O {[%clk 0:04:49]} 8. c3
{[%clk 0:04:39.6]} 8... Re8+ {[%clk 0:04:46.5]} 9. Be3 {[%clk 0:04:35]} 9... Bg4
{[%clk 0:04:43.8]} 10. Qc2 {[%clk 0:04:33.2]} 10... h6 {[%clk 0:04:39.4]} 11.
O-O-O {[%clk 0:04:28]} 11... Nd7 {[%clk 0:04:29.8]} 12. h3 {[%clk 0:04:25.5]}
12... Be6 {[%clk 0:04:27.9]} 13. g4 {[%clk 0:04:24.1]} 13... Bd5 {[%clk
0:04:16.8]} 14. Nh4 {[%clk 0:04:14.4]} 14... Bxh1 {[%clk 0:04:12.8]} 15. Rxh1
{[%clk 0:04:14.3]} 15... c5 {[%clk 0:04:11.2]} 16. Nf5 {[%clk 0:04:11.7]} 16...
Nf8 {[%clk 0:03:48.8]} 17. Qd2 {[%clk 0:03:54.2]} 17... Rxe3 {[%clk 0:03:45.7]}
18. Qxe3 {[%clk 0:03:51.4]} 18... cxd4 {[%clk 0:03:43.8]} 19. cxd4 {[%clk
0:03:43.7]} 19... Qd7 {[%clk 0:03:32.5]} 20. Nxd6 {[%clk 0:03:34.7]} 20... Qxd6
{[%clk 0:03:28.5]} 21. Kb1 {[%clk 0:03:27.5]} 21... Rd8 {[%clk 0:03:23.4]} 22.
Rd1 {[%clk 0:03:20.5]} 22... Ne6 {[%clk 0:03:16.3]} 23. Qe4 {[%clk 0:03:09.4]}
23... g6 {[%clk 0:02:56.8]} 24. Qxb7 {[%clk 0:03:03.9]} 24... Qxd4 {[%clk
0:02:53.4]} 25. Qb3 {[%clk 0:02:56.8]} 25... Nc5 {[%clk 0:02:42.7]} 26. Qc2
{[%clk 0:02:28.8]} 26... Nxd3 {[%clk 0:02:40.1]} 27. Rd2 {[%clk 0:02:23.7]}
27... Kg7 {[%clk 0:02:31.5]} 28. h4 {[%clk 0:02:21.1]} 28... Rd6 {[%clk
0:02:19.4]} 29. h5 {[%clk 0:02:07.9]} 29... g5 {[%clk 0:02:12.9]} 30. a3 {[%clk
0:01:59.5]} 30... Qd5 {[%clk 0:01:57.9]} 31. Re2 {[%clk 0:01:54.1]} 31... Ne5
{[%clk 0:01:49]} 32. Kc1 {[%clk 0:01:49.4]} 32... Rc6 {[%clk 0:01:46.3]} 0-1

[Event "Live Chess"]
[Site "Chess.com"]
[Date "2024.06.01"]
[Round "-"]
[White "Queensandpawns"]
[Black "E2E4colchester"]
[Result "1-0"]
[WhiteElo "2471"]
[BlackElo "1494"]
[TimeControl "300"]
[EndTime "10:00:42 PDT"]
[Termination "Queensandpawns won by checkmate"]

1. e4 {[%clk 0:04:59]} 1... c5 {[%clk 0:04:57.8]} 2. d4 {[%clk 0:04:57.6]} 2...
cxd4 {[%clk 0:04:55.8]} 3. c3 {[%clk 0:04:57.5]} 3... dxc3 {[%clk 0:04:54.3]} 4.
Bc4 {[%clk 0:04:56.7]} 4... e6 {[%clk 0:04:52.3]} 5. Nxc3 {[%clk 0:04:55.6]}
5... Nc6 {[%clk 0:04:49.9]} 6. Nf3 {[%clk 0:04:55.2]} 6... Nf6 {[%clk
0:04:48.7]} 7. O-O {[%clk 0:04:53]} 7... d5 {[%clk 0:04:43.3]} 8. exd5 {[%clk
0:04:51.9]} 8... exd5 {[%clk 0:04:42.5]} 9. Nxd5 {[%clk 0:04:51.6]} 9... Nxd5
{[%clk 0:04:41.6]} 10. Bxd5 {[%clk 0:04:51.5]} 10... Be6 {[%clk 0:04:24.7]} 11.
Re1 {[%clk 0:04:48]} 11... Be7 {[%clk 0:04:20.5]} 12. Bxe6 {[%clk 0:04:43.5]}
12... Qxd1 {[%clk 0:04:19]} 13. Bxf7+ {[%clk 0:04:42.3]} 13... Kxf7 {[%clk
0:04:17.5]} 14. Rxd1 {[%clk 0:04:42.2]} 14... Rhd8 {[%clk 0:04:13.8]} 15. Bf4
{[%clk 0:04:40.2]} 15... Rxd1+ {[%clk 0:04:10.6]} 16. Rxd1 {[%clk 0:04:40.1]}
16... Rd8 {[%clk 0:04:09.8]} 17. Rxd8 {[%clk 0:04:37]} 17... Bxd8 {[%clk
0:04:07.2]} 18. Kf1 {[%clk 0:04:36.2]} 18... Nb4 {[%clk 0:04:04.4]} 19. a3
{[%clk 0:04:24.2]} 19... Nc2 {[%clk 0:04:00.4]} 20. Bd2 {[%clk 0:04:17.9]} 20...
a6 {[%clk 0:03:57.6]} 21. Bc3 {[%clk 0:04:16.9]} 21... Na1 {[%clk 0:03:53.4]}
22. Nd4 {[%clk 0:03:58]} 22... Bb6 {[%clk 0:03:47.8]} 23. Ke2 {[%clk 0:03:55.1]}
23... g6 {[%clk 0:03:44.7]} 24. Kd3 {[%clk 0:03:53.8]} 24... Kf6 {[%clk
0:03:43]} 25. Nc2+ {[%clk 0:03:50.6]} 25... Kf5 {[%clk 0:03:29.1]} 26. Nxa1
{[%clk 0:03:50.5]} 26... Bxf2 {[%clk 0:03:28.4]} 27. Ke2 {[%clk 0:03:48.9]}
27... Bg1 {[%clk 0:03:27]} 28. h3 {[%clk 0:03:48]} 28... Bh2 {[%clk 0:03:23.8]}
29. Nc2 {[%clk 0:03:46.6]} 29... h5 {[%clk 0:03:17]} 30. Kf3 {[%clk 0:03:44.2]}
30... Bc7 {[%clk 0:03:14]} 31. Ne3+ {[%clk 0:03:41.9]} 31... Kg5 {[%clk
0:03:12.2]} 32. Nd5 {[%clk 0:03:41]} 32... Bd8 {[%clk 0:03:05.9]} 33. g4 {[%clk
0:03:36.4]} 33... h4 {[%clk 0:03:01]} 34. Bd2# {[%clk 0:03:34.2]} 1-0

[Event "Live Chess"]
[Site "Chess.com"]
[Date "2024.06.01"]
[Round "-"]
[White "13Alexey"]
[Black "Zhevzh1k7"]
[Result "0-1"]
[WhiteElo "738"]
[BlackElo "1072"]
[TimeControl "300"]
[EndTime "10:00:49 PDT"]
[Termination "Zhevzh1k7 won by checkmate"]

1. d4 {[%clk 0:04:58.5]} 1... Nf6 {[%clk 0:04:58.2]} 2. Bf4 {[%clk 0:04:57.4]}
2... c6 {[%clk 0:04:57.2]} 3. e3 {[%clk 0:04:56.3]} 3... g5 {[%clk 0:04:53.7]}
4. Bg3 {[%clk 0:04:53.5]} 4... Qb6 {[%clk 0:04:48.8]} 5. Qc1 {[%clk 0:04:50.9]}
5... Bh6 {[%clk 0:04:43.1]} 6. Bd3 {[%clk 0:04:47.1]} 6... d5 {[%clk 0:04:39.6]}
7. c3 {[%clk 0:04:43.6]} 7... e6 {[%clk 0:04:37.3]} 8. Nf3 {[%clk 0:04:41.9]}
8... Bd7 {[%clk 0:04:34.1]} 9. Ne5 {[%clk 0:04:38.4]} 9... Ne4 {[%clk
0:04:24.3]} 10. b4 {[%clk 0:04:29.7]} 10... Na6 {[%clk 0:04:16.5]} 11. O-O
{[%clk 0:04:25.9]} 11... Nxg3 {[%clk 0:04:13.8]} 12. fxg3 {[%clk 0:04:24.2]}
12... f5 {[%clk 0:04:05]} 13. g4 {[%clk 0:04:11.9]} 13... Rf8 {[%clk 0:04:00.5]}
14. gxf5 {[%clk 0:04:09.6]} 14... exf5 {[%clk 0:03:57.9]} 15. Nxd7 {[%clk
0:04:01.2]} 15... Kxd7 {[%clk 0:03:51.2]} 16. Bxf5+ {[%clk 0:03:57.3]} 16... Ke7
{[%clk 0:03:46.4]} 17. Bxh7 {[%clk 0:03:53.3]} 17... Nc7 {[%clk 0:03:43]} 18.
Rxf8 {[%clk 0:03:49.6]} 18... Rxf8 {[%clk 0:03:42.9]} 19. Qd2 {[%clk 0:03:44.6]}
19... Qb5 {[%clk 0:03:37.7]} 20. Bd3 {[%clk 0:03:41.8]} 20... Qb6 {[%clk
0:03:30.5]} 21. a4 {[%clk 0:03:39.8]} 21... a6 {[%clk 0:03:29.4]} 22. a5 {[%clk
0:03:38]} 22... Qa7 {[%clk 0:03:28.5]} 23. Qe2 {[%clk 0:03:31.5]} 23... Nb5
{[%clk 0:03:20.3]} 24. Qh5 {[%clk 0:03:28.5]} 24... Bg7 {[%clk 0:03:08.4]} 25.
Qxg5+ {[%clk 0:03:24.9]} 25... Bf6 {[%clk 0:03:03]} 26. Qg4 {[%clk 0:03:14.2]}
26... Nxd4 {[%clk 0:02:58.7]} 27. exd4 {[%clk 0:03:12.5]} 27... Qb8 {[%clk
0:02:55.8]} 28. Nd2 {[%clk 0:03:08.4]} 28... Rg8 {[%clk 0:02:50.8]} 29. Qf3
{[%clk 0:02:55.9]} 29... Kd6 {[%clk 0:02:43.3]} 30. Qf4+ {[%clk 0:02:53.2]}
30... Ke7 {[%clk 0:02:39.5]} 31. Qxb8 {[%clk 0:02:47.6]} 31... Rxb8 {[%clk
0:02:37.7]} 32. Re1+ {[%clk 0:02:44.7]} 32... Kd6 {[%clk 0:02:36.7]} 33. Nf3
{[%clk 0:02:41.3]} 33... b6 {[%clk 0:02:32.8]} 34. Ne5 {[%clk 0:02:38.5]} 34...
bxa5 {[%clk 0:02:28.7]} 35. bxa5 {[%clk 0:02:35.1]} 35... Rb3 {[%clk 0:02:15.9]}
36. Bxa6 {[%clk 0:02:31.2]} 36... Rxc3 {[%clk 0:02:13.5]} 37. Bb7 {[%clk
0:02:26.4]} 37... Rc2 {[%clk 0:02:12.3]} 38. a6 {[%clk 0:02:24.1]} 38... Rb2
{[%clk 0:02:08]} 39. Nf7+ {[%clk 0:02:13.1]} 39... Kc7 {[%clk 0:02:05.2]} 40.
Re8 {[%clk 0:02:09]} 40... Bxd4+ {[%clk 0:02:02.9]} 41. Kf1 {[%clk 0:02:04.6]}
41... Rf2+ {[%clk 0:02:00.3]} 42. Ke1 {[%clk 0:02:01.3]} 42... Rxf7 {[%clk
0:01:58.3]} 43. Rc8+ {[%clk 0:01:58.4]} 43... Kd7 {[%clk 0:01:55.3]} 44. g4
{[%clk 0:01:49.1]} 44... Bc3+ {[%clk 0:01:51.9]} 45. Ke2 {[%clk 0:01:45.8]}
45... Bd4 {[%clk 0:01:46.1]} 46. Bxc6+ {[%clk 0:01:43.2]} 46... Kxc8 {[%clk
0:01:44.7]} 47. Bb7+ {[%clk 0:01:38.6]} 47... Kb8 {[%clk 0:01:42.5]} 48. Kd3
{[%clk 0:01:37]} 48... Ba7 {[%clk 0:01:39.1]} 49. h4 {[%clk 0:01:34.6]} 49...
Rf4 {[%clk 0:01:33]} 50. Bxd5 {[%clk 0:01:27.9]} 50... Rxg4 {[%clk 0:01:30.6]}
51. h5 {[%clk 0:01:26]} 51... Rh4 {[%clk 0:01:29.3]} 52. Bf3 {[%clk 0:01:23]}
52... Kc7 {[%clk 0:01:28.3]} 53. Kc3 {[%clk 0:01:18.5]} 53... Kb6 {[%clk
0:01:27.4]} 54. Kd3 {[%clk 0:01:16.1]} 54... Kxa6 {[%clk 0:01:26.7]} 55. Kc3
{[%clk 0:01:10.3]} 55... Kb5 {[%clk 0:01:25.8]} 56. Kd3 {[%clk 0:01:08.7]} 56...
Kc5 {[%clk 0:01:24.1]} 57. Ke3 {[%clk 0:01:06.5]} 57... Kc4+ {[%clk 0:01:22.2]}
58. Kd2 {[%clk 0:01:04.3]} 58... Rh2+ {[%clk 0:01:19.9]} 59. Ke1 {[%clk
0:01:01.6]} 59... Bf2+ {[%clk 0:01:15.5]} 60. Kd2 {[%clk 0:00:59.9]} 60... Kd4
{[%clk 0:01:12]} 61. Kc2 {[%clk 0:00:58.6]} 61... Be3+ {[%clk 0:01:10.9]} 62.
Kb3 {[%clk 0:00:56]} 62... Bh6 {[%clk 0:01:06.4]} 63. Kb4 {[%clk 0:00:54]} 63...
Rh3 {[%clk 0:01:03.7]} 64. Kb5 {[%clk 0:00:52.6]} 64... Rxf3 {[%clk 0:01:01.7]}
65. Kc6 {[%clk 0:00:51.2]} 65... Rf5 {[%clk 0:01:01.1]} 66. Kd6 {[%clk
0:00:48.9]} 66... Rxh5 {[%clk 0:01:01]} 67. Kc6 {[%clk 0:00:47.5]} 67... Ke4
{[%clk 0:01:00.3]} 68. Kd6 {[%clk 0:00:46.1]} 68... Re5 {[%clk 0:00:59.2]} 69.
Kc6 {[%clk 0:00:44.5]} 69... Bf4 {[%clk 0:00:58.7]} 70. Kb6 {[%clk 0:00:42.5]}
70... Rd5 {[%clk 0:00:56.1]} 71. Kc6 {[%clk 0:00:41.3]} 71... Ke5 {[%clk
0:00:53.8]} 72. Kb6 {[%clk 0:00:39.9]} 72... Kd4 {[%clk 0:00:49]} 73. Kc6 {[%clk
0:00:38.9]} 73... Rd6+ {[%clk 0:00:45.6]} 74. Kb5 {[%clk 0:00:37]} 74... Rd5+
{[%clk 0:00:43.9]} 75. Kc6 {[%clk 0:00:36]} 75... Rc5+ {[%clk 0:00:43]} 76. Kd7
{[%clk 0:00:34.5]} 76... Kd5 {[%clk 0:00:42]} 77. Ke7 {[%clk 0:00:33.2]} 77...
Rc6 {[%clk 0:00:40.9]} 78. Kf7 {[%clk 0:00:31.9]} 78... Re6 {[%clk 0:00:39]} 79.
Kg7 {[%clk 0:00:29.3]} 79... Ke5 {[%clk 0:00:35]} 80. Kf7 {[%clk 0:00:28.1]}
80... Rh6 {[%clk 0:00:31]} 81. Kg7 {[%clk 0:00:26.8]} 81... Ke6 {[%clk
0:00:28.7]} 82. Kg8 {[%clk 0:00:21.6]} 82... Kf6 {[%clk 0:00:26.7]} 83. Kf8
{[%clk 0:00:14.7]} 83... Rh8# {[%clk 0:00:25.7]} 0-1

[Event "Live Chess"]
[Site "Chess.com"]
[Date "2024.06.01"]
[Round "-"]
[White "ACM42"]
[Black "Tilbs_12"]
[Result "1-0"]
[WhiteElo "2210"]
[BlackElo "1644"]
[TimeControl "300"]
[EndTime "10:00:49 PDT"]
[Termination "ACM42 won by resignation"]

1. e4 {[%clk 0:04:58.2]} 1... c6 {[%clk 0:04:59.2]} 2. d4 {[%clk 0:04:57.1]}
2... d5 {[%clk 0:04:58.4]} 3. e5 {[%clk 0:04:56.5]} 3... c5 {[%clk 0:04:57.4]}
4. c3 {[%clk 0:04:55.4]} 4... Nc6 {[%clk 0:04:56.6]} 5. Bb5 {[%clk 0:04:51.5]}
5... cxd4 {[%clk 0:04:55.4]} 6. cxd4 {[%clk 0:04:50.6]} 6... e6 {[%clk
0:04:49.4]} 7. Nc3 {[%clk 0:04:49.3]} 7... Qb6 {[%clk 0:04:47.7]} 8. Nf3 {[%clk
0:04:47.6]} 8... Bb4 {[%clk 0:04:45.1]} 9. Bd3 {[%clk 0:04:42.3]} 9... Nxd4
{[%clk 0:04:39.4]} 10. Nxd4 {[%clk 0:04:41.2]} 10... Bc5 {[%clk 0:04:27]} 11.
Nce2 {[%clk 0:04:33.3]} 11... Ne7 {[%clk 0:04:25]} 12. O-O {[%clk 0:04:31.1]}
12... O-O {[%clk 0:04:22]} 13. Bc2 {[%clk 0:04:20.6]} 13... a6 {[%clk
0:04:20.5]} 14. a3 {[%clk 0:04:18.5]} 14... Ng6 {[%clk 0:04:12.8]} 15. f4 {[%clk
0:04:10.5]} 15... Bd7 {[%clk 0:04:08.8]} 16. b4 {[%clk 0:04:08.9]} 16... Be7
{[%clk 0:04:06.5]} 17. Be3 {[%clk 0:03:59.2]} 17... Qc7 {[%clk 0:04:02.8]} 18.
Rc1 {[%clk 0:03:57.6]} 18... Qb8 {[%clk 0:03:59.2]} 19. Ng3 {[%clk 0:03:35.8]}
19... a5 {[%clk 0:03:40.6]} 20. Qd2 {[%clk 0:03:22.1]} 20... axb4 {[%clk
0:03:35.8]} 21. axb4 {[%clk 0:03:22]} 21... Ra2 {[%clk 0:03:30.8]} 22. Ra1
{[%clk 0:03:20.2]} 22... Rxa1 {[%clk 0:03:14.5]} 23. Rxa1 {[%clk 0:03:20.1]}
23... Qc7 {[%clk 0:03:13.9]} 24. b5 {[%clk 0:03:12.3]} 24... Rc8 {[%clk
0:03:11.8]} 25. Rc1 {[%clk 0:03:08.2]} 25... Qb8 {[%clk 0:03:05.9]} 26. Bxg6
{[%clk 0:03:05.3]} 26... hxg6 {[%clk 0:03:04.5]} 27. Nge2 {[%clk 0:03:00.7]}
27... b6 {[%clk 0:02:56.8]} 28. g3 {[%clk 0:02:58.1]} 28... Bc5 {[%clk
0:02:54.6]} 29. Kf2 {[%clk 0:02:49.4]} 29... Qb7 {[%clk 0:02:52.9]} 30. Qd3
{[%clk 0:02:43.4]} 30... Ra8 {[%clk 0:02:51.3]} 31. Nb3 {[%clk 0:02:37.8]} 31...
Bxe3+ {[%clk 0:02:33]} 32. Qxe3 {[%clk 0:02:35.7]} 32... Ra3 {[%clk 0:02:32.2]}
33. Ned4 {[%clk 0:02:32.5]} 33... Qa7 {[%clk 0:02:25.4]} 34. Rc2 {[%clk
0:02:26.2]} 34... Qa4 {[%clk 0:02:21.4]} 35. Qd3 {[%clk 0:02:10.4]} 35... Qb4
{[%clk 0:01:52.3]} 36. Qc3 {[%clk 0:02:05.7]} 36... Qxc3 {[%clk 0:01:38.9]} 37.
Rxc3 {[%clk 0:02:04.6]} 37... Ra2+ {[%clk 0:01:31.7]} 38. Kg1 {[%clk 0:01:58.7]}
38... Kf8 {[%clk 0:01:27.7]} 39. h4 {[%clk 0:01:57.1]} 39... Ke7 {[%clk
0:01:25.9]} 40. Nc6+ {[%clk 0:01:55.3]} 40... Ke8 {[%clk 0:01:23]} 41. Nbd4
{[%clk 0:01:52.7]} 41... f6 {[%clk 0:01:19.7]} 42. Rc2 {[%clk 0:01:50.4]} 42...
Ra3 {[%clk 0:01:17.9]} 43. Kf2 {[%clk 0:01:48.7]} 43... Kf7 {[%clk 0:01:01.3]}
44. Nb8 {[%clk 0:01:46]} 44... Be8 {[%clk 0:00:55.8]} 45. Rc7+ {[%clk
0:01:43.8]} 45... Kf8 {[%clk 0:00:54.9]} 46. Rc8 {[%clk 0:01:40.7]} 46... Kf7
{[%clk 0:00:48.6]} 47. Rc7+ {[%clk 0:01:39.2]} 47... Kf8 {[%clk 0:00:44.8]} 48.
Nxe6+ {[%clk 0:01:38.5]} 48... Kg8 {[%clk 0:00:39.9]} 49. Rxg7+ {[%clk
0:01:37.7]} 49... Kh8 {[%clk 0:00:38.3]} 50. exf6 {[%clk 0:01:37.1]} 50... Bxb5
{[%clk 0:00:36.6]} 51. f7 {[%clk 0:01:34]} 51... Ra2+ {[%clk 0:00:35.8]} 1-0

[Event "Live Chess"]
[Site "Chess.com"]
[Date "2024.06.01"]
[Round "-"]
[White "TheSmoulderingMaster"]
[Black "Larchikov"]
[Result "0-1"]
[WhiteElo "1749"]
[BlackElo "2045"]
[TimeControl "300"]
[EndTime "10:00:49 PDT"]
[Termination "Larchikov won by resignation"]

1. e4 {[%clk 0:04:54.8]} 1... c6 {[%clk 0:04:59]} 2. d4 {[%clk 0:04:53.2]} 2...
d5 {[%clk 0:04:58.9]} 3. Nc3 {[%clk 0:04:51.8]} 3... dxe4 {[%clk 0:04:57.7]} 4.
Nxe4 {[%clk 0:04:51.1]} 4... Bf5 {[%clk 0:04:57]} 5. Ng3 {[%clk 0:04:50.1]} 5...
Bg6 {[%clk 0:04:54.5]} 6. Nh3 {[%clk 0:04:49.4]} 6... e6 {[%clk 0:04:44.1]} 7.
Nf4 {[%clk 0:04:46.9]} 7... Nf6 {[%clk 0:04:43.7]} 8. h4 {[%clk 0:04:44.7]} 8...
Bd6 {[%clk 0:04:40.2]} 9. h5 {[%clk 0:04:43.2]} 9... Be4 {[%clk 0:04:36.2]} 10.
Qe2 {[%clk 0:04:40.4]} 10... Bxf4 {[%clk 0:04:27.8]} 11. Bxf4 {[%clk 0:04:38.6]}
11... Qxd4 {[%clk 0:04:25]} 12. Rd1 {[%clk 0:04:36.4]} 12... Qa4 {[%clk
0:04:09.2]} 13. b3 {[%clk 0:04:33.4]} 13... Qa5+ {[%clk 0:03:55.9]} 14. Bd2
{[%clk 0:04:31.3]} 14... Qe5 {[%clk 0:03:46]} 15. c4 {[%clk 0:04:23.6]} 15...
Nbd7 {[%clk 0:03:42]} 16. Rc1 {[%clk 0:04:21.7]} 16... Bd3 {[%clk 0:03:30.8]}
17. Qxe5 {[%clk 0:04:18]} 17... Nxe5 {[%clk 0:03:30.7]} 18. f4 {[%clk
0:04:14.5]} 18... Bxf1 {[%clk 0:03:24.2]} 19. fxe5 {[%clk 0:04:13.1]} 19... Bxg2
{[%clk 0:03:17.2]} 20. Rg1 {[%clk 0:04:11.9]} 20... Ng4 {[%clk 0:03:09.4]} 21.
Rxg2 {[%clk 0:04:08.8]} 21... Nxe5 {[%clk 0:03:08.8]} 22. Bc3 {[%clk 0:04:05.7]}
22... Nd3+ {[%clk 0:03:07.5]} 23. Kd2 {[%clk 0:04:03.1]} 23... Nxc1 {[%clk
0:03:07.4]} 24. Kxc1 {[%clk 0:04:02.5]} 24... f6 {[%clk 0:03:05.8]} 25. h6
{[%clk 0:04:00.9]} 25... gxh6 {[%clk 0:03:01.6]} 26. Nh5 {[%clk 0:03:59]} 26...
O-O-O {[%clk 0:02:59]} 27. Bxf6 {[%clk 0:03:56.3]} 27... Rhg8 {[%clk 0:02:56.9]}
28. Rxg8 {[%clk 0:03:50.4]} 28... Rxg8 {[%clk 0:02:55]} 29. Bg7 {[%clk
0:03:48.1]} 29... e5 {[%clk 0:02:44.7]} 30. Bxh6 {[%clk 0:03:38.4]} 30... Rg1+
{[%clk 0:02:42.9]} 31. Kc2 {[%clk 0:03:36.5]} 31... Rh1 {[%clk 0:02:41.2]} 32.
Bg7 {[%clk 0:03:27.3]} 32... Rxh5 {[%clk 0:02:39.4]} 0-1

[Event "Live Chess"]
[Site "Chess.com"]
[Date "2024.06.01"]
[Round "-"]
[White "grillage"]
[Black "Velocity"]
[Result "1-0"]
[WhiteElo "1889"]
[BlackElo "1714"]
[TimeControl "300"]
[EndTime "10:00:52 PDT"]
[Termination "grillage won by resignation"]

1. d4 {[%clk 0:04:57.6]} 1... Nf6 {[%clk 0:04:58.9]} 2. Nf3 {[%clk 0:04:56]}
2... g6 {[%clk 0:04:58.2]} 3. c4 {[%clk 0:04:54.4]} 3... Bg7 {[%clk 0:04:57.8]}
4. g3 {[%clk 0:04:54]} 4... d6 {[%clk 0:04:57.2]} 5. Bg2 {[%clk 0:04:53.5]} 5...
O-O {[%clk 0:04:56.5]} 6. O-O {[%clk 0:04:53]} 6... Nbd7 {[%clk 0:04:50.5]} 7.
d5 {[%clk 0:04:48.1]} 7... e5 {[%clk 0:04:46.7]} 8. dxe6 {[%clk 0:04:46.8]} 8...
fxe6 {[%clk 0:04:46]} 9. Nc3 {[%clk 0:04:46.3]} 9... Rf7 {[%clk 0:04:38.4]} 10.
Ng5 {[%clk 0:04:44.9]} 10... Rf8 {[%clk 0:04:34.6]} 11. Nxe6 {[%clk 0:04:43.6]}
11... Qe7 {[%clk 0:04:31.7]} 12. Nxf8 {[%clk 0:04:42.7]} 12... Bxf8 {[%clk
0:04:31.6]} 13. Bg5 {[%clk 0:04:37.5]} 13... Ne5 {[%clk 0:04:29.8]} 14. b3
{[%clk 0:04:32.3]} 14... Bg7 {[%clk 0:04:25.2]} 15. Nd5 {[%clk 0:04:31.1]} 15...
Qe6 {[%clk 0:04:24]} 16. Bxf6 {[%clk 0:04:29.5]} 16... Bxf6 {[%clk 0:04:23.9]}
17. Nxf6+ {[%clk 0:04:28.6]} 17... Qxf6 {[%clk 0:04:23.8]} 18. Rc1 {[%clk
0:04:24.5]} 18... Bf5 {[%clk 0:04:18.9]} 19. Bxb7 {[%clk 0:04:21.9]} 19... Rf8
{[%clk 0:04:16.4]} 20. Bg2 {[%clk 0:04:18.9]} 20... Ng4 {[%clk 0:04:14]} 21. h3
{[%clk 0:04:13.7]} 21... Ne5 {[%clk 0:04:12.8]} 22. Qd2 {[%clk 0:04:00.3]} 22...
Kg7 {[%clk 0:04:06]} 23. Rcd1 {[%clk 0:03:57.6]} 23... Rf7 {[%clk 0:03:53.2]}
24. Qd4 {[%clk 0:03:49]} 24... Kg8 {[%clk 0:03:47.8]} 25. Qxa7 {[%clk
0:03:45.3]} 25... Re7 {[%clk 0:03:42.3]} 26. Qa8+ {[%clk 0:03:41.3]} 26... Kg7
{[%clk 0:03:41]} 27. Qd5 {[%clk 0:03:35.6]} 27... Nf7 {[%clk 0:03:32.1]} 28. Qd4
{[%clk 0:03:33.6]} 28... Ne5 {[%clk 0:03:15.5]} 29. a4 {[%clk 0:03:29.3]} 29...
Kg8 {[%clk 0:03:03.5]} 30. f4 {[%clk 0:03:21.1]} 30... Bxh3 {[%clk 0:02:51.3]}
31. fxe5 {[%clk 0:03:12.1]} 31... dxe5 {[%clk 0:02:40.5]} 32. Rxf6 {[%clk
0:03:09.3]} 32... exd4 {[%clk 0:02:38.5]} 33. Bxh3 {[%clk 0:03:08]} 1-0

[Event "Live Chess"]
[Site "Chess.com"]
[Date "2024.06.01"]
[Round "-"]
[White "Ferrarifan27"]
[Black "OliWally08"]
[Result "1-0"]
[WhiteElo "2075"]
[BlackElo "1258"]
[TimeControl "300"]
[EndTime "10:00:53 PDT"]
[Termination "Ferrarifan27 won by resignation"]

1. e4 {[%clk 0:04:56.9]} 1... d5 {[%clk 0:04:59]} 2. exd5 {[%clk 0:04:53.1]}
2... Nf6 {[%clk 0:04:58.1]} 3. d4 {[%clk 0:04:50.1]} 3... Nxd5 {[%clk
0:04:54.4]} 4. Nf3 {[%clk 0:04:46.1]} 4... Bg4 {[%clk 0:04:52.8]} 5. h3 {[%clk
0:04:30.9]} 5... Bh5 {[%clk 0:04:49.6]} 6. Be2 {[%clk 0:04:22.4]} 6... Nc6
{[%clk 0:04:45.3]} 7. O-O {[%clk 0:04:15.6]} 7... e6 {[%clk 0:04:40.6]} 8. Re1
{[%clk 0:04:10.1]} 8... Bd6 {[%clk 0:04:39.1]} 9. Bg5 {[%clk 0:04:06.6]} 9... f6
{[%clk 0:04:26.6]} 10. Bh4 {[%clk 0:03:50]} 10... g5 {[%clk 0:04:19.5]} 11. Nxg5
{[%clk 0:03:45.8]} 11... fxg5 {[%clk 0:04:18.2]} 12. Bxh5+ {[%clk 0:03:44]}
12... Kd7 {[%clk 0:04:12.7]} 13. Qg4 {[%clk 0:03:35.1]} 13... Nf4 {[%clk
0:03:15.9]} 14. Bxg5 {[%clk 0:03:29.7]} 14... Qf8 {[%clk 0:02:46]} 15. Bxf4
{[%clk 0:03:26.1]} 15... Qxf4 {[%clk 0:02:40.5]} 16. Qxe6+ {[%clk 0:03:22.9]}
16... Kd8 {[%clk 0:02:39.1]} 17. g3 {[%clk 0:03:12]} 17... Qg5 {[%clk
0:02:21.9]} 18. Bg4 {[%clk 0:03:07.4]} 18... Nb8 {[%clk 0:02:11.3]} 19. Nc3
{[%clk 0:02:52.2]} 19... h5 {[%clk 0:02:01.9]} 20. Ne4 {[%clk 0:02:37.8]} 20...
Qg7 {[%clk 0:01:47.5]} 21. Nxd6 {[%clk 0:02:31.6]} 21... cxd6 {[%clk 0:01:45.9]}
22. Qxd6+ {[%clk 0:02:30.2]} 22... Nd7 {[%clk 0:01:44.5]} 23. Bxd7 {[%clk
0:02:26.7]} 23... Qxd7 {[%clk 0:01:42.7]} 24. Qf6+ {[%clk 0:02:24.5]} 1-0